{"text_format":"1","workbook":"xlsx","n_sheets":3,"sheets":["Instrucciones","Reformulación Presupuesto Bb","Resumen Presupuesto"],"not_rendered":{"charts":0,"images":4,"macros":1,"external_links":0,"defined_names":8,"comments":2,"pivot_tables":0},"unopened":[],"bounds":{"document_bytes":16777216,"sheet_cells":100000,"rows_first":2000,"rows_last":500,"rows_between":2000,"halvings":0,"cell_chars":16384,"cell_head_chars":4096},"cells_cut":0,"cells_raw":0,"read":"whole","date_system":"1900"}

{"sheet":"Instrucciones","index":0,"n_rows":15,"n_cols":10,"rows_kept":15,"cut":false,"hidden":false,"merged":[[1,9,1,11],[2,2,2,17],[4,2,4,17],[14,1,15,15]]}
[]
[null,null,null,null,null,null,null,null,null,"Doc_basico3_presup_reformulado_Bb INSTRUCCIONES"]
[null,null,"SUBVENCIONES DEL AYUNTAMIENTO DE BARCELONA PARA EL FORTALECIMIENTO DE LA ECONOMIA SOCIAL Y SOLIDARIA Y PARA LA INTERCOOPERACIÓN EN LA ESTRATEGIA #ESSBCN2030 - FORTALECEMOS LA ESS 2024"]
[]
[null,null,"Aspectos relevantes relacionados con la reformulación"]
[]
[]
[]
[]
[null,"1. Rellenar la pestaña \"Reformulación Presupuesto\" con los datos económicos del proyecto:"]
[null,"1.1 Rellenar los cuadros DATOS BÁSICOS-PREVISIÓN DE GASTOS DEL PROYECTO SUBVENCIONABLE INICIAL, con los datos económicos de la propuesta inicial con subvención otorgada."]
[null,"1.2 Rellenar los cuadros DATOS BÁSICOS-PREVISIÓN DE GASTOS DEL PROYECTO REFORMULADO, con los datos económicos de la propuesta de reformulación."]
[null,"2. Revisar y rellenar la pestaña \"Resumen Presupuesto\" con los datos económicos del proyecto."]
[null,"3. Imprimir las hojas de las 2 pestañas (Reformulación presupuesto y Resumen Presupuesto). En formato pdf."]
[null,"4. Si la solicitud se presentó por vía telemática, es necesario registrar la documentación, telemáticamente, como trámite específico, dentro de la convocatoria específica como anexión de documentos adicionales y utilizar el número de trámite que el sistema de registro os dio en el momento de la presentación de la solicitud de la subvención."]

{"sheet":"Reformulación Presupuesto Bb","index":1,"n_rows":140,"n_cols":13,"rows_kept":140,"cut":false,"hidden":false,"merged":[[136,0,136,12],[137,0,137,12],[138,0,138,12],[139,0,139,12],[6,2,6,5],[18,5,18,8],[10,5,10,6],[19,0,19,3],[18,10,18,12],[122,0,122,12],[123,0,123,12],[124,0,124,12],[125,0,125,12],[18,0,18,3],[117,0,117,12],[118,0,118,12],[119,0,119,12],[120,0,120,12],[121,0,121,12],[1,1,1,12],[3,0,4,12],[131,0,131,12],[132,0,132,12],[133,0,133,12],[134,0,134,12],[135,0,135,12],[126,0,126,12],[127,0,127,12],[128,0,128,12],[129,0,129,12],[130,0,130,12]]}
[]
[null,"Reformulación presupuesto Modalidad Bb"]
[]
["Programa de subvenciones del Ayuntamiento de Barcelona para el fortalecimiento de la Economía Social y Solidaria y para la intercooperación en la Estrategia #ESSBCN2030 - FORTALECEMOS LA ESS 2024"]
[]
[]
[]
["DATOS BÁSICOS"]
["Nombre de la persona jurídica",null,{"$f":"+IF(H9>Dadesbasiques[[#This Row],[Columna1]],\"ALERTA: La quantia de la subvenció atorgada no pot superar el 80% de la despesa total del projecte a subvencionar\", \" \")","v":" "},null,null,"  "]
["NIF de la persona jurídica",null,{"$f":"+IF(H10>Dadesbasiques[[#This Row],[Columna1]],\"ALERTA: La quantia de la subvenció atorgada no pot superar el 80% de la despesa total del projecte a subvencionar\", \" \")","v":" "}]
["Nombre del proyecto subvencionable",null,{"$f":"+IF(G11>Dadesbasiques[[#This Row],[Columna1]],\"ALERTA: La quantia de la subvenció atorgada no pot superar el 80% de la despesa total del projecte a subvencionar\", \" \")","v":" "},null,null,"DATOS BÁSICOS PROYECTO REFORMULADO"]
["Importe total del proyecto subvencionable",null,null,null,null,"Importe total del proyecto REFORMULADO"]
["Importe imputable a la subvención municipal",null,null,null,null,"Importe imputable a la subvención OTORGADA"]
["Importe de la aportación / Cofinanciación de la organización",{"$f":"+B12-B13","v":0},null,null,null,"Importe de la aportación / Cofinanciación de la organización",{"$f":"G12-G13","v":0}]
["% del importe solicitado respecto el total del proyecto subvencionable (*)",{"$f":"B13/B12","v":{"$error":"#DIV/0!"}},null,null,null,"% del importe solicitado respecto el total del proyecto subvencionado",{"$f":"G13/G12","v":{"$error":"#DIV/0!"}},{"$f":"+IF(G15>Dadesbasiques[[#This Row],[Columna1]],\"*Aquest percentatge ha de ser igual o menor al percentatge subvencionat inicialment.\",\" \")","v":{"$error":"#DIV/0!"}}]
["Data inici del projecte subvencionat (dd/mm/aaaa)",null,{"$f":"+IF(H16>Dadesbasiques[[#This Row],[Columna1]],\"ALERTA: La quantia de la subvenció atorgada no pot superar el 80% de la despesa total del projecte a subvencionar\", \" \")","v":" "}]
["Data fi del projecte subvencionat (dd/mm/aaaa)",null,{"$f":"+IF(H17>Dadesbasiques[[#This Row],[Columna1]],\"ALERTA: La quantia de la subvenció atorgada no pot superar el 80% de la despesa total del projecte a subvencionar\", \" \")","v":" "}]
[]
["PREVISIÓN DE GASTOS DEL PROYECTO SUBVENCIONABLE INICIALMENTE",null,null,null,null,"PREVISIÓN DE GASTOS DEL PROYECTO REFORMULADO",null,null,null,null,"DIFERENCIA REFORMULACIÓN Y PROYECTO INICIAL"]
[]
[]
["Partidas","Importe imputable a la subvención municipal","Importe de la aportación / Cofinanciación de la organización","Importe total del proyecto",null,"Partidas","Importe imputable a la subvención municipal","Importe de la aportación / Cofinanciación de la organización","Importe total del proyecto",null,"Importe imputable a la subvención municipal","Importe de la aportación / Cofinanciación de la organización","Importe total del proyecto"]
["D1. Nóminas y seguridad social IRPF (régimen general o socios/as cooperativistas en régimen de autónomos) del personal propio vinculado al proyecto subvencionable (máximo 25% importe subvención)",{"$f":"SUM(B24:B26)","v":0},{"$f":"SUM(C24:C26)","v":0},{"$f":"SUM(DespesesProjecte[[#This Row],[Importe imputable a la subvención municipal]],DespesesProjecte[[#This Row],[Importe de la aportación / Cofinanciación de la organización]])","v":0},null,"D1. Nóminas y seguridad social IRPF (régimen general o socios/as cooperativistas en régimen de autónomos) del personal propio vinculado al proyecto subvencionable (máximo 25% importe subvención)",{"$f":"SUM(G24:G26)","v":0},{"$f":"SUM(H24:H26)","v":0},{"$f":"+G23+H23","v":0},null,{"$f":"DespesesProjecte[[#This Row],[Importe imputable a la subvención municipal]]-G23","v":0},{"$f":"DespesesProjecte[[#This Row],[Importe de la aportación / Cofinanciación de la organización]]-H23","v":0},{"$f":"DespesesProjecte[[#This Row],[Importe total del proyecto]]-I23","v":0}]
[null,null,null,{"$f":"SUM(DespesesProjecte[[#This Row],[Importe imputable a la subvención municipal]],DespesesProjecte[[#This Row],[Importe de la aportación / Cofinanciación de la organización]])","v":0},null,null,null,null,{"$f":"+G24+H24","v":0},null,{"$f":"DespesesProjecte[[#This Row],[Importe imputable a la subvención municipal]]-G24","v":0},{"$f":"DespesesProjecte[[#This Row],[Importe de la aportación / Cofinanciación de la organización]]-H24","v":0},{"$f":"DespesesProjecte[[#This Row],[Importe total del proyecto]]-I24","v":0}]
[null,null,null,{"$f":"SUM(DespesesProjecte[[#This Row],[Importe imputable a la subvención municipal]],DespesesProjecte[[#This Row],[Importe de la aportación / Cofinanciación de la organización]])","v":0},null,null,null,null,0,null,{"$f":"DespesesProjecte[[#This Row],[Importe imputable a la subvención municipal]]-G25","v":0},{"$f":"DespesesProjecte[[#This Row],[Importe de la aportación / Cofinanciación de la organización]]-H25","v":0},{"$f":"DespesesProjecte[[#This Row],[Importe total del proyecto]]-I25","v":0}]
[null,null,null,{"$f":"SUM(DespesesProjecte[[#This Row],[Importe imputable a la subvención municipal]],DespesesProjecte[[#This Row],[Importe de la aportación / Cofinanciación de la organización]])","v":0},null,null,null,null,0,null,{"$f":"DespesesProjecte[[#This Row],[Importe imputable a la subvención municipal]]-G26","v":0},{"$f":"DespesesProjecte[[#This Row],[Importe de la aportación / Cofinanciación de la organización]]-H26","v":0},{"$f":"DespesesProjecte[[#This Row],[Importe total del proyecto]]-I26","v":0}]
["D2. Nóminas y seguridad social de estudiantes en prácticas (con un límite del 80% del su sueldo bruto correspondiente al período de la ejecución de la subvención) - excepto si la seguridad social está bonificada",{"$f":"SUM(B28:B30)","v":0},{"$f":"SUM(C28:C30)","v":0},{"$f":"SUM(DespesesProjecte[[#This Row],[Importe imputable a la subvención municipal]],DespesesProjecte[[#This Row],[Importe de la aportación / Cofinanciación de la organización]])","v":0},null,"D2. Nóminas y seguridad social de estudiantes en prácticas (con un límite del 80% del su sueldo bruto correspondiente al período de la ejecución de la subvención) - excepto si la seguridad social está bonificada",{"$f":"SUM(G28:G30)","v":0},{"$f":"SUM(H28:H30)","v":0},0,null,{"$f":"DespesesProjecte[[#This Row],[Importe imputable a la subvención municipal]]-G27","v":0},{"$f":"DespesesProjecte[[#This Row],[Importe de la aportación / Cofinanciación de la organización]]-H27","v":0},{"$f":"DespesesProjecte[[#This Row],[Importe total del proyecto]]-I27","v":0}]
[null,null,null,{"$f":"SUM(DespesesProjecte[[#This Row],[Importe imputable a la subvención municipal]],DespesesProjecte[[#This Row],[Importe de la aportación / Cofinanciación de la organización]])","v":0},null,null,null,null,0,null,{"$f":"DespesesProjecte[[#This Row],[Importe imputable a la subvención municipal]]-G28","v":0},{"$f":"DespesesProjecte[[#This Row],[Importe de la aportación / Cofinanciación de la organización]]-H28","v":0},{"$f":"DespesesProjecte[[#This Row],[Importe total del proyecto]]-I28","v":0}]
[null,null,null,{"$f":"SUM(DespesesProjecte[[#This Row],[Importe imputable a la subvención municipal]],DespesesProjecte[[#This Row],[Importe de la aportación / Cofinanciación de la organización]])","v":0},null,null,null,null,0,null,{"$f":"DespesesProjecte[[#This Row],[Importe imputable a la subvención municipal]]-G29","v":0},{"$f":"DespesesProjecte[[#This Row],[Importe de la aportación / Cofinanciación de la organización]]-H29","v":0},{"$f":"DespesesProjecte[[#This Row],[Importe total del proyecto]]-I29","v":0}]
[null,null,null,{"$f":"SUM(DespesesProjecte[[#This Row],[Importe imputable a la subvención municipal]],DespesesProjecte[[#This Row],[Importe de la aportación / Cofinanciación de la organización]])","v":0},null,null,null,null,0,null,{"$f":"DespesesProjecte[[#This Row],[Importe imputable a la subvención municipal]]-G30","v":0},{"$f":"DespesesProjecte[[#This Row],[Importe de la aportación / Cofinanciación de la organización]]-H30","v":0},{"$f":"DespesesProjecte[[#This Row],[Importe total del proyecto]]-I30","v":0}]
["TOTAL DE GATOS DEL PERSONAL\n",{"$f":"SUM(B23+B27)","v":0},{"$f":"SUM(C23+C27)","v":0},{"$f":"SUM(D23+D27)","v":0},null,"TOTAL DE GASTOS DEL PERSONAL\n",{"$f":"SUM(G23+G27)","v":0},{"$f":"SUM(H23+H27)","v":0},{"$f":"SUM(I23+I27)","v":0},{"$f":"+IF(G31>G13*0.4,\"ALERTA: Màxim 40% de l'import imputable a la subvenció municipal\", \" \")","v":" "},{"$f":"DespesesProjecte[[#This Row],[Importe imputable a la subvención municipal]]-G31","v":0},{"$f":"DespesesProjecte[[#This Row],[Importe de la aportación / Cofinanciación de la organización]]-H31","v":0},{"$f":"DespesesProjecte[[#This Row],[Importe de la aportación / Cofinanciación de la organización]]-I31","v":0}]
["D3. Trabajos realizados por profesionales y empresas externas directamente vinculadas al proyecto",{"$f":"SUM(B33:B35)","v":0},{"$f":"SUM(C33:C35)","v":0},{"$f":"SUM(DespesesProjecte[[#This Row],[Importe imputable a la subvención municipal]],DespesesProjecte[[#This Row],[Importe de la aportación / Cofinanciación de la organización]])","v":0},null,"D3. Trabajos realizados por profesionales y empresas externas directamente vinculadas al proyecto",{"$f":"SUM(G33:G35)","v":0},{"$f":"SUM(H33:H35)","v":0},{"$f":"+G32+H32","v":0},null,{"$f":"DespesesProjecte[[#This Row],[Importe imputable a la subvención municipal]]-G32","v":0},{"$f":"DespesesProjecte[[#This Row],[Importe de la aportación / Cofinanciación de la organización]]-H32","v":0},{"$f":"DespesesProjecte[[#This Row],[Importe total del proyecto]]-I32","v":0}]
[null,null,null,{"$f":"SUM(DespesesProjecte[[#This Row],[Importe imputable a la subvención municipal]],DespesesProjecte[[#This Row],[Importe de la aportación / Cofinanciación de la organización]])","v":0},null,null,null,null,{"$f":"+G33+H33","v":0},null,{"$f":"DespesesProjecte[[#This Row],[Importe imputable a la subvención municipal]]-G33","v":0},{"$f":"DespesesProjecte[[#This Row],[Importe de la aportación / Cofinanciación de la organización]]-H33","v":0},{"$f":"DespesesProjecte[[#This Row],[Importe total del proyecto]]-I33","v":0}]
[null,null,null,{"$f":"SUM(DespesesProjecte[[#This Row],[Importe imputable a la subvención municipal]],DespesesProjecte[[#This Row],[Importe de la aportación / Cofinanciación de la organización]])","v":0},null,null,null,null,0,null,{"$f":"DespesesProjecte[[#This Row],[Importe imputable a la subvención municipal]]-G34","v":0},{"$f":"DespesesProjecte[[#This Row],[Importe de la aportación / Cofinanciación de la organización]]-H34","v":0},{"$f":"DespesesProjecte[[#This Row],[Importe total del proyecto]]-I34","v":0}]
[null,null,null,{"$f":"SUM(DespesesProjecte[[#This Row],[Importe imputable a la subvención municipal]],DespesesProjecte[[#This Row],[Importe de la aportación / Cofinanciación de la organización]])","v":0},null,null,null,null,0,null,{"$f":"DespesesProjecte[[#This Row],[Importe imputable a la subvención municipal]]-G35","v":0},{"$f":"DespesesProjecte[[#This Row],[Importe de la aportación / Cofinanciación de la organización]]-H35","v":0},{"$f":"DespesesProjecte[[#This Row],[Importe total del proyecto]]-I35","v":0}]
["D4. Adquisición de materiales y bienes consumibles íntegramente imputables al proyecto ",{"$f":"SUM(B37:B39)","v":0},{"$f":"SUM(C37:C39)","v":0},{"$f":"SUM(DespesesProjecte[[#This Row],[Importe imputable a la subvención municipal]],DespesesProjecte[[#This Row],[Importe de la aportación / Cofinanciación de la organización]])","v":0},null,"D4. Adquisición de materiales y bienes consumibles íntegramente imputables al proyecto ",{"$f":"SUM(G37:G39)","v":0},{"$f":"SUM(H37:H39)","v":0},0,null,{"$f":"DespesesProjecte[[#This Row],[Importe imputable a la subvención municipal]]-G36","v":0},{"$f":"DespesesProjecte[[#This Row],[Importe de la aportación / Cofinanciación de la organización]]-H36","v":0},{"$f":"DespesesProjecte[[#This Row],[Importe total del proyecto]]-I36","v":0}]
[null,null,null,{"$f":"SUM(DespesesProjecte[[#This Row],[Importe imputable a la subvención municipal]],DespesesProjecte[[#This Row],[Importe de la aportación / Cofinanciación de la organización]])","v":0},null,null,null,null,0,null,{"$f":"DespesesProjecte[[#This Row],[Importe imputable a la subvención municipal]]-G37","v":0},{"$f":"DespesesProjecte[[#This Row],[Importe de la aportación / Cofinanciación de la organización]]-H37","v":0},{"$f":"DespesesProjecte[[#This Row],[Importe total del proyecto]]-I37","v":0}]
[null,null,null,{"$f":"SUM(DespesesProjecte[[#This Row],[Importe imputable a la subvención municipal]],DespesesProjecte[[#This Row],[Importe de la aportación / Cofinanciación de la organización]])","v":0},null,null,null,null,0,null,{"$f":"DespesesProjecte[[#This Row],[Importe imputable a la subvención municipal]]-G38","v":0},{"$f":"DespesesProjecte[[#This Row],[Importe de la aportación / Cofinanciación de la organización]]-H38","v":0},{"$f":"DespesesProjecte[[#This Row],[Importe total del proyecto]]-I38","v":0}]
[null,null,null,{"$f":"SUM(DespesesProjecte[[#This Row],[Importe imputable a la subvención municipal]],DespesesProjecte[[#This Row],[Importe de la aportación / Cofinanciación de la organización]])","v":0},null,null,null,null,0,null,{"$f":"DespesesProjecte[[#This Row],[Importe imputable a la subvención municipal]]-G39","v":0},{"$f":"DespesesProjecte[[#This Row],[Importe de la aportación / Cofinanciación de la organización]]-H39","v":0},{"$f":"DespesesProjecte[[#This Row],[Importe total del proyecto]]-I39","v":0}]
["D5. Transporte – mensajería imputables al proyecto",{"$f":"SUM(B41:B43)","v":0},{"$f":"SUM(C41:C43)","v":0},{"$f":"DespesesProjecte[[#This Row],[Importe imputable a la subvención municipal]]+DespesesProjecte[[#This Row],[Importe de la aportación / Cofinanciación de la organización]]","v":0},null,"D5. Transporte – mensajería imputables al proyecto",{"$f":"SUM(G41:G43)","v":0},{"$f":"SUM(H41:H43)","v":0},0,null,{"$f":"DespesesProjecte[[#This Row],[Importe imputable a la subvención municipal]]-G40","v":0},{"$f":"DespesesProjecte[[#This Row],[Importe de la aportación / Cofinanciación de la organización]]-H40","v":0},{"$f":"DespesesProjecte[[#This Row],[Importe total del proyecto]]-I40","v":0}]
[null,null,null,{"$f":"SUM(DespesesProjecte[[#This Row],[Importe imputable a la subvención municipal]],DespesesProjecte[[#This Row],[Importe de la aportación / Cofinanciación de la organización]])","v":0},null,null,null,null,0,null,{"$f":"DespesesProjecte[[#This Row],[Importe imputable a la subvención municipal]]-G41","v":0},{"$f":"DespesesProjecte[[#This Row],[Importe de la aportación / Cofinanciación de la organización]]-H41","v":0},{"$f":"DespesesProjecte[[#This Row],[Importe total del proyecto]]-I41","v":0}]
[null,null,null,{"$f":"SUM(DespesesProjecte[[#This Row],[Importe imputable a la subvención municipal]],DespesesProjecte[[#This Row],[Importe de la aportación / Cofinanciación de la organización]])","v":0},null,null,null,null,0,null,{"$f":"DespesesProjecte[[#This Row],[Importe imputable a la subvención municipal]]-G42","v":0},{"$f":"DespesesProjecte[[#This Row],[Importe de la aportación / Cofinanciación de la organización]]-H42","v":0},{"$f":"DespesesProjecte[[#This Row],[Importe total del proyecto]]-I42","v":0}]
[null,null,null,{"$f":"SUM(DespesesProjecte[[#This Row],[Importe imputable a la subvención municipal]],DespesesProjecte[[#This Row],[Importe de la aportación / Cofinanciación de la organización]])","v":0},null,null,null,null,0,null,{"$f":"DespesesProjecte[[#This Row],[Importe imputable a la subvención municipal]]-G43","v":0},{"$f":"DespesesProjecte[[#This Row],[Importe de la aportación / Cofinanciación de la organización]]-H43","v":0},{"$f":"DespesesProjecte[[#This Row],[Importe total del proyecto]]-I43","v":0}]
["D6. Publicidad y propaganda de las actividades directamente vinculadas al proyecto",{"$f":"SUM(B45:B47)","v":0},{"$f":"SUM(C45:C47)","v":0},{"$f":"SUM(DespesesProjecte[[#This Row],[Importe imputable a la subvención municipal]],DespesesProjecte[[#This Row],[Importe de la aportación / Cofinanciación de la organización]])","v":0},null,"D6. Publicidad y propaganda de las actividades directamente vinculadas al proyecto",{"$f":"SUM(G45:G47)","v":0},{"$f":"SUM(H45:H47)","v":0},0,null,{"$f":"DespesesProjecte[[#This Row],[Importe imputable a la subvención municipal]]-G44","v":0},{"$f":"DespesesProjecte[[#This Row],[Importe de la aportación / Cofinanciación de la organización]]-H44","v":0},{"$f":"DespesesProjecte[[#This Row],[Importe total del proyecto]]-I44","v":0}]
[null,null,null,{"$f":"SUM(DespesesProjecte[[#This Row],[Importe imputable a la subvención municipal]],DespesesProjecte[[#This Row],[Importe de la aportación / Cofinanciación de la organización]])","v":0},null,null,null,null,0,null,{"$f":"DespesesProjecte[[#This Row],[Importe imputable a la subvención municipal]]-G45","v":0},{"$f":"DespesesProjecte[[#This Row],[Importe de la aportación / Cofinanciación de la organización]]-H45","v":0},{"$f":"DespesesProjecte[[#This Row],[Importe total del proyecto]]-I45","v":0}]
[null,null,null,{"$f":"SUM(DespesesProjecte[[#This Row],[Importe imputable a la subvención municipal]],DespesesProjecte[[#This Row],[Importe de la aportación / Cofinanciación de la organización]])","v":0},null,null,null,null,0,null,{"$f":"DespesesProjecte[[#This Row],[Importe imputable a la subvención municipal]]-G46","v":0},{"$f":"DespesesProjecte[[#This Row],[Importe de la aportación / Cofinanciación de la organización]]-H46","v":0},{"$f":"DespesesProjecte[[#This Row],[Importe total del proyecto]]-I46","v":0}]
[null,null,null,{"$f":"SUM(DespesesProjecte[[#This Row],[Importe imputable a la subvención municipal]],DespesesProjecte[[#This Row],[Importe de la aportación / Cofinanciación de la organización]])","v":0},null,null,null,null,0,null,{"$f":"DespesesProjecte[[#This Row],[Importe imputable a la subvención municipal]]-G47","v":0},{"$f":"DespesesProjecte[[#This Row],[Importe de la aportación / Cofinanciación de la organización]]-H47","v":0},{"$f":"DespesesProjecte[[#This Row],[Importe total del proyecto]]-I47","v":0}]
["D7. Alojamiento y dietas, del personal contratado y voluntario, vinculados al proyecto",{"$f":"SUM(B49:B51)","v":0},{"$f":"SUM(C49:C51)","v":0},{"$f":"SUM(DespesesProjecte[[#This Row],[Importe imputable a la subvención municipal]],DespesesProjecte[[#This Row],[Importe de la aportación / Cofinanciación de la organización]])","v":0},null,"D7. Alojamiento y dietas, del personal contratado y voluntario, vinculados al proyecto",{"$f":"SUM(G49:G51)","v":0},{"$f":"SUM(H49:H51)","v":0},0,null,{"$f":"DespesesProjecte[[#This Row],[Importe imputable a la subvención municipal]]-G48","v":0},{"$f":"DespesesProjecte[[#This Row],[Importe de la aportación / Cofinanciación de la organización]]-H48","v":0},{"$f":"DespesesProjecte[[#This Row],[Importe total del proyecto]]-I48","v":0}]
[null,null,null,{"$f":"SUM(DespesesProjecte[[#This Row],[Importe imputable a la subvención municipal]],DespesesProjecte[[#This Row],[Importe de la aportación / Cofinanciación de la organización]])","v":0},null,null,null,null,0,null,{"$f":"DespesesProjecte[[#This Row],[Importe imputable a la subvención municipal]]-G49","v":0},{"$f":"DespesesProjecte[[#This Row],[Importe de la aportación / Cofinanciación de la organización]]-H49","v":0},{"$f":"DespesesProjecte[[#This Row],[Importe total del proyecto]]-I49","v":0}]
[null,null,null,{"$f":"SUM(DespesesProjecte[[#This Row],[Importe imputable a la subvención municipal]],DespesesProjecte[[#This Row],[Importe de la aportación / Cofinanciación de la organización]])","v":0},null,null,null,null,0,null,{"$f":"DespesesProjecte[[#This Row],[Importe imputable a la subvención municipal]]-G50","v":0},{"$f":"DespesesProjecte[[#This Row],[Importe de la aportación / Cofinanciación de la organización]]-H50","v":0},{"$f":"DespesesProjecte[[#This Row],[Importe total del proyecto]]-I50","v":0}]
[null,null,null,{"$f":"SUM(DespesesProjecte[[#This Row],[Importe imputable a la subvención municipal]],DespesesProjecte[[#This Row],[Importe de la aportación / Cofinanciación de la organización]])","v":0},null,null,null,null,0,null,{"$f":"DespesesProjecte[[#This Row],[Importe imputable a la subvención municipal]]-G51","v":0},{"$f":"DespesesProjecte[[#This Row],[Importe de la aportación / Cofinanciación de la organización]]-H51","v":0},{"$f":"DespesesProjecte[[#This Row],[Importe total del proyecto]]-I51","v":0}]
["D8. Ayudas al transporte para los/las participantes de los proyectos en caso de que sea necesario de manera justificada",{"$f":"SUM(B53:B55)","v":0},{"$f":"SUM(C53:C55)","v":0},{"$f":"SUM(DespesesProjecte[[#This Row],[Importe imputable a la subvención municipal]],DespesesProjecte[[#This Row],[Importe de la aportación / Cofinanciación de la organización]])","v":0},null,"D8. Ayudas al transporte para los/las participantes de los proyectos en caso de que sea necesario de manera justificada",{"$f":"SUM(G53:G55)","v":0},{"$f":"SUM(H53:H55)","v":0},0,null,{"$f":"DespesesProjecte[[#This Row],[Importe imputable a la subvención municipal]]-G52","v":0},{"$f":"DespesesProjecte[[#This Row],[Importe de la aportación / Cofinanciación de la organización]]-H52","v":0},{"$f":"DespesesProjecte[[#This Row],[Importe total del proyecto]]-I52","v":0}]
[null,null,null,{"$f":"SUM(DespesesProjecte[[#This Row],[Importe imputable a la subvención municipal]],DespesesProjecte[[#This Row],[Importe de la aportación / Cofinanciación de la organización]])","v":0},null,null,null,null,0,null,{"$f":"DespesesProjecte[[#This Row],[Importe imputable a la subvención municipal]]-G53","v":0},{"$f":"DespesesProjecte[[#This Row],[Importe de la aportación / Cofinanciación de la organización]]-H53","v":0},{"$f":"DespesesProjecte[[#This Row],[Importe total del proyecto]]-I53","v":0}]
[null,null,null,{"$f":"SUM(DespesesProjecte[[#This Row],[Importe imputable a la subvención municipal]],DespesesProjecte[[#This Row],[Importe de la aportación / Cofinanciación de la organización]])","v":0},null,null,null,null,0,null,{"$f":"DespesesProjecte[[#This Row],[Importe imputable a la subvención municipal]]-G54","v":0},{"$f":"DespesesProjecte[[#This Row],[Importe de la aportación / Cofinanciación de la organización]]-H54","v":0},{"$f":"DespesesProjecte[[#This Row],[Importe total del proyecto]]-I54","v":0}]
[null,null,null,{"$f":"SUM(DespesesProjecte[[#This Row],[Importe imputable a la subvención municipal]],DespesesProjecte[[#This Row],[Importe de la aportación / Cofinanciación de la organización]])","v":0},null,null,null,null,0,null,{"$f":"DespesesProjecte[[#This Row],[Importe imputable a la subvención municipal]]-G55","v":0},{"$f":"DespesesProjecte[[#This Row],[Importe de la aportación / Cofinanciación de la organización]]-H55","v":0},{"$f":"DespesesProjecte[[#This Row],[Importe total del proyecto]]-I55","v":0}]
["D9. Viajes y desplazamientos imputables a las actividades del proyecto",{"$f":"SUM(B57:B59)","v":0},{"$f":"SUM(C57:C59)","v":0},{"$f":"DespesesProjecte[[#This Row],[Importe imputable a la subvención municipal]]+DespesesProjecte[[#This Row],[Importe de la aportación / Cofinanciación de la organización]]","v":0},null,"D9. Viajes y desplazamientos imputables a las actividades del proyecto",{"$f":"SUM(G57:G59)","v":0},{"$f":"SUM(H57:H59)","v":0},0,null,{"$f":"DespesesProjecte[[#This Row],[Importe imputable a la subvención municipal]]-G56","v":0},{"$f":"DespesesProjecte[[#This Row],[Importe de la aportación / Cofinanciación de la organización]]-H56","v":0},{"$f":"DespesesProjecte[[#This Row],[Importe total del proyecto]]-I56","v":0}]
[null,null,null,{"$f":"SUM(DespesesProjecte[[#This Row],[Importe imputable a la subvención municipal]],DespesesProjecte[[#This Row],[Importe de la aportación / Cofinanciación de la organización]])","v":0},null,null,null,null,{"$f":"+G57+H57","v":0},null,{"$f":"DespesesProjecte[[#This Row],[Importe imputable a la subvención municipal]]-G57","v":0},{"$f":"DespesesProjecte[[#This Row],[Importe de la aportación / Cofinanciación de la organización]]-H57","v":0},{"$f":"DespesesProjecte[[#This Row],[Importe total del proyecto]]-I57","v":0}]
[null,null,null,{"$f":"SUM(DespesesProjecte[[#This Row],[Importe imputable a la subvención municipal]],DespesesProjecte[[#This Row],[Importe de la aportación / Cofinanciación de la organización]])","v":0},null,null,null,null,0,null,{"$f":"DespesesProjecte[[#This Row],[Importe imputable a la subvención municipal]]-G58","v":0},{"$f":"DespesesProjecte[[#This Row],[Importe de la aportación / Cofinanciación de la organización]]-H58","v":0},{"$f":"DespesesProjecte[[#This Row],[Importe total del proyecto]]-I58","v":0}]
[null,null,null,{"$f":"SUM(DespesesProjecte[[#This Row],[Importe imputable a la subvención municipal]],DespesesProjecte[[#This Row],[Importe de la aportación / Cofinanciación de la organización]])","v":0},null,null,null,null,0,null,{"$f":"DespesesProjecte[[#This Row],[Importe imputable a la subvención municipal]]-G59","v":0},{"$f":"DespesesProjecte[[#This Row],[Importe de la aportación / Cofinanciación de la organización]]-H59","v":0},{"$f":"DespesesProjecte[[#This Row],[Importe total del proyecto]]-I59","v":0}]
["D10. Tributos, cuando sean abonados directamente por la persona jurídica beneficiaria",{"$f":"SUM(B61:B63)","v":0},{"$f":"SUM(C61:C63)","v":0},{"$f":"DespesesProjecte[[#This Row],[Importe imputable a la subvención municipal]]+DespesesProjecte[[#This Row],[Importe de la aportación / Cofinanciación de la organización]]","v":0},null,"D10. Tributos, cuando sean abonados directamente por la persona jurídica beneficiaria",{"$f":"SUM(G61:G63)","v":0},{"$f":"SUM(H61:H63)","v":0},{"$f":"+G60+H60","v":0},null,{"$f":"DespesesProjecte[[#This Row],[Importe imputable a la subvención municipal]]-G60","v":0},{"$f":"DespesesProjecte[[#This Row],[Importe de la aportación / Cofinanciación de la organización]]-H60","v":0},{"$f":"DespesesProjecte[[#This Row],[Importe total del proyecto]]-I60","v":0}]
[null,null,null,{"$f":"SUM(DespesesProjecte[[#This Row],[Importe imputable a la subvención municipal]],DespesesProjecte[[#This Row],[Importe de la aportación / Cofinanciación de la organización]])","v":0},null,null,null,null,0,null,{"$f":"DespesesProjecte[[#This Row],[Importe imputable a la subvención municipal]]-G61","v":0},{"$f":"DespesesProjecte[[#This Row],[Importe de la aportación / Cofinanciación de la organización]]-H61","v":0},{"$f":"DespesesProjecte[[#This Row],[Importe total del proyecto]]-I61","v":0}]
[null,null,null,{"$f":"SUM(DespesesProjecte[[#This Row],[Importe imputable a la subvención municipal]],DespesesProjecte[[#This Row],[Importe de la aportación / Cofinanciación de la organización]])","v":0},null,null,null,null,0,null,{"$f":"DespesesProjecte[[#This Row],[Importe imputable a la subvención municipal]]-G62","v":0},{"$f":"DespesesProjecte[[#This Row],[Importe de la aportación / Cofinanciación de la organización]]-H62","v":0},{"$f":"DespesesProjecte[[#This Row],[Importe total del proyecto]]-I62","v":0}]
[null,null,null,{"$f":"SUM(DespesesProjecte[[#This Row],[Importe imputable a la subvención municipal]],DespesesProjecte[[#This Row],[Importe de la aportación / Cofinanciación de la organización]])","v":0},null,null,null,null,0,null,{"$f":"DespesesProjecte[[#This Row],[Importe imputable a la subvención municipal]]-G63","v":0},{"$f":"DespesesProjecte[[#This Row],[Importe de la aportación / Cofinanciación de la organización]]-H63","v":0},{"$f":"DespesesProjecte[[#This Row],[Importe total del proyecto]]-I63","v":0}]
["D11. Gastos del informe de auditoría (máximo 1.500€ subvención)",{"$f":"SUM(B65:B67)","v":0},{"$f":"SUM(C65:C67)","v":0},{"$f":"DespesesProjecte[[#This Row],[Importe imputable a la subvención municipal]]+DespesesProjecte[[#This Row],[Importe de la aportación / Cofinanciación de la organización]]","v":0},null,"D11. Gastos del informe de auditoría (máximo 1.500€ subvención)",{"$f":"SUM(G65:G67)","v":0},{"$f":"SUM(H65:H67)","v":0},0,{"$f":"+IF(G64>1500,\"ALERTA: Màxim 1.500€ imputables a la subvenció municipal\", \" \")","v":" "},{"$f":"DespesesProjecte[[#This Row],[Importe imputable a la subvención municipal]]-G64","v":0},{"$f":"DespesesProjecte[[#This Row],[Importe de la aportación / Cofinanciación de la organización]]-H64","v":0},{"$f":"DespesesProjecte[[#This Row],[Importe total del proyecto]]-I64","v":0}]
[null,null,null,{"$f":"SUM(DespesesProjecte[[#This Row],[Importe imputable a la subvención municipal]],DespesesProjecte[[#This Row],[Importe de la aportación / Cofinanciación de la organización]])","v":0},null,null,null,null,0,null,{"$f":"DespesesProjecte[[#This Row],[Importe imputable a la subvención municipal]]-G65","v":0},{"$f":"DespesesProjecte[[#This Row],[Importe de la aportación / Cofinanciación de la organización]]-H65","v":0},{"$f":"DespesesProjecte[[#This Row],[Importe total del proyecto]]-I65","v":0}]
[null,null,null,{"$f":"SUM(DespesesProjecte[[#This Row],[Importe imputable a la subvención municipal]],DespesesProjecte[[#This Row],[Importe de la aportación / Cofinanciación de la organización]])","v":0},null,null,null,null,0,null,{"$f":"DespesesProjecte[[#This Row],[Importe imputable a la subvención municipal]]-G66","v":0},{"$f":"DespesesProjecte[[#This Row],[Importe de la aportación / Cofinanciación de la organización]]-H66","v":0},{"$f":"DespesesProjecte[[#This Row],[Importe total del proyecto]]-I66","v":0}]
[null,null,null,{"$f":"SUM(DespesesProjecte[[#This Row],[Importe imputable a la subvención municipal]],DespesesProjecte[[#This Row],[Importe de la aportación / Cofinanciación de la organización]])","v":0},null,null,null,null,0,null,{"$f":"DespesesProjecte[[#This Row],[Importe imputable a la subvención municipal]]-G67","v":0},{"$f":"DespesesProjecte[[#This Row],[Importe de la aportación / Cofinanciación de la organización]]-H67","v":0},{"$f":"DespesesProjecte[[#This Row],[Importe total del proyecto]]-I67","v":0}]
["D12. Otros gastos que de manera justificada y por la tipología del proyecto puedan imputarse directamente al proyecto",{"$f":"SUM(B69:B71)","v":0},{"$f":"SUM(C69:C71)","v":0},{"$f":"DespesesProjecte[[#This Row],[Importe imputable a la subvención municipal]]+DespesesProjecte[[#This Row],[Importe de la aportación / Cofinanciación de la organización]]","v":0},null,"D12. Otros gastos que de manera justificada y por la tipología del proyecto puedan imputarse directamente al proyecto",{"$f":"SUM(G69:G71)","v":0},{"$f":"SUM(H69:H71)","v":0},0,null,{"$f":"DespesesProjecte[[#This Row],[Importe imputable a la subvención municipal]]-G68","v":0},{"$f":"DespesesProjecte[[#This Row],[Importe de la aportación / Cofinanciación de la organización]]-H68","v":0},{"$f":"DespesesProjecte[[#This Row],[Importe total del proyecto]]-I68","v":0}]
[null,null,null,{"$f":"SUM(DespesesProjecte[[#This Row],[Importe imputable a la subvención municipal]],DespesesProjecte[[#This Row],[Importe de la aportación / Cofinanciación de la organización]])","v":0},null,null,null,null,0,null,{"$f":"DespesesProjecte[[#This Row],[Importe imputable a la subvención municipal]]-G69","v":0},{"$f":"DespesesProjecte[[#This Row],[Importe de la aportación / Cofinanciación de la organización]]-H69","v":0},{"$f":"DespesesProjecte[[#This Row],[Importe total del proyecto]]-I69","v":0}]
[null,null,null,{"$f":"SUM(DespesesProjecte[[#This Row],[Importe imputable a la subvención municipal]],DespesesProjecte[[#This Row],[Importe de la aportación / Cofinanciación de la organización]])","v":0},null,null,null,null,0,null,{"$f":"DespesesProjecte[[#This Row],[Importe imputable a la subvención municipal]]-G70","v":0},{"$f":"DespesesProjecte[[#This Row],[Importe de la aportación / Cofinanciación de la organización]]-H70","v":0},{"$f":"DespesesProjecte[[#This Row],[Importe total del proyecto]]-I70","v":0}]
[null,null,null,{"$f":"SUM(DespesesProjecte[[#This Row],[Importe imputable a la subvención municipal]],DespesesProjecte[[#This Row],[Importe de la aportación / Cofinanciación de la organización]])","v":0},null,null,null,null,0,null,{"$f":"DespesesProjecte[[#This Row],[Importe imputable a la subvención municipal]]-G71","v":0},{"$f":"DespesesProjecte[[#This Row],[Importe de la aportación / Cofinanciación de la organización]]-H71","v":0},{"$f":"DespesesProjecte[[#This Row],[Importe total del proyecto]]-I71","v":0}]
["TOTAL DE OTROS GASTOS DIRECTOS",{"$f":"B32+B36+B40+B44+B48+B52+B56+B60+B64+B68","v":0},{"$f":"C32+C36+C40+C44+C48+C52+C56+C60+C64+C68","v":0},{"$f":"D32+D36+D40+D44+D48+D52+D56+D60+D64+D68","v":0},null,"TOTAL DE OTROS GASTOS DIRECTOS",{"$f":"G32+G36+G40+G44+G48+G52+G56+G60+G64+G68","v":0},{"$f":"H32+H36+H40+H44+H48+H52+H56+H60+H64+H68","v":0},{"$f":"I32+I36+I40+I44+I48+I52+I56+I60+I64+I68","v":0},null,{"$f":"DespesesProjecte[[#This Row],[Importe imputable a la subvención municipal]]-G72","v":0},{"$f":"DespesesProjecte[[#This Row],[Importe de la aportación / Cofinanciación de la organización]]-H72","v":0},{"$f":"DespesesProjecte[[#This Row],[Importe total del proyecto]]-I72","v":0}]
["TOTAL GASTOS DIRECTOS (aquellos que se identifican directamente con el proyecto subvencionable)",{"$f":"B31+B72","v":0},{"$f":"C31+C72","v":0},{"$f":"D31+D72","v":0},null,"TOTAL GASTOS DIRECTOS (aquellos que se identifican directamente con el proyecto subvencionable)",{"$f":"G31+G72","v":0},{"$f":"H31+H72","v":0},{"$f":"I31+I72","v":0},null,{"$f":"DespesesProjecte[[#This Row],[Importe imputable a la subvención municipal]]-G73","v":0},{"$f":"DespesesProjecte[[#This Row],[Importe de la aportación / Cofinanciación de la organización]]-H73","v":0},{"$f":"DespesesProjecte[[#This Row],[Importe total del proyecto]]-I73","v":0}]
["I1. Personal propio vinculado indirectamente (nóminas y seguridad social) ",{"$f":"SUM(B75:B77)","v":0},{"$f":"SUM(C75:C77)","v":0},{"$f":"SUM(DespesesProjecte[[#This Row],[Importe imputable a la subvención municipal]],DespesesProjecte[[#This Row],[Importe de la aportación / Cofinanciación de la organización]])","v":0},null,"I1. Personal propio vinculado indirectamente (nóminas y seguridad social) ",{"$f":"SUM(G75:G77)","v":0},{"$f":"SUM(H75:H77)","v":0},{"$f":"+G74+H74","v":0},null,{"$f":"DespesesProjecte[[#This Row],[Importe imputable a la subvención municipal]]-G74","v":0},{"$f":"DespesesProjecte[[#This Row],[Importe de la aportación / Cofinanciación de la organización]]-H74","v":0},{"$f":"DespesesProjecte[[#This Row],[Importe total del proyecto]]-I74","v":0}]
[null,null,null,{"$f":"SUM(DespesesProjecte[[#This Row],[Importe imputable a la subvención municipal]],DespesesProjecte[[#This Row],[Importe de la aportación / Cofinanciación de la organización]])","v":0},null,null,null,null,{"$f":"+G75+H75","v":0},null,{"$f":"DespesesProjecte[[#This Row],[Importe imputable a la subvención municipal]]-G75","v":0},{"$f":"DespesesProjecte[[#This Row],[Importe de la aportación / Cofinanciación de la organización]]-H75","v":0},{"$f":"DespesesProjecte[[#This Row],[Importe total del proyecto]]-I75","v":0}]
[null,null,null,{"$f":"SUM(DespesesProjecte[[#This Row],[Importe imputable a la subvención municipal]],DespesesProjecte[[#This Row],[Importe de la aportación / Cofinanciación de la organización]])","v":0},null,null,null,null,0,null,{"$f":"DespesesProjecte[[#This Row],[Importe imputable a la subvención municipal]]-G76","v":0},{"$f":"DespesesProjecte[[#This Row],[Importe de la aportación / Cofinanciación de la organización]]-H76","v":0},{"$f":"DespesesProjecte[[#This Row],[Importe total del proyecto]]-I76","v":0}]
[null,null,null,{"$f":"SUM(DespesesProjecte[[#This Row],[Importe imputable a la subvención municipal]],DespesesProjecte[[#This Row],[Importe de la aportación / Cofinanciación de la organización]])","v":0},null,null,null,null,0,null,{"$f":"DespesesProjecte[[#This Row],[Importe imputable a la subvención municipal]]-G77","v":0},{"$f":"DespesesProjecte[[#This Row],[Importe de la aportación / Cofinanciación de la organización]]-H77","v":0},{"$f":"DespesesProjecte[[#This Row],[Importe total del proyecto]]-I77","v":0}]
["I2. Seguros",{"$f":"SUM(B79:B81)","v":0},{"$f":"SUM(C79:C81)","v":0},{"$f":"SUM(DespesesProjecte[[#This Row],[Importe imputable a la subvención municipal]],DespesesProjecte[[#This Row],[Importe de la aportación / Cofinanciación de la organización]])","v":0},null,"I2. Seguros",{"$f":"SUM(G79:G81)","v":0},{"$f":"SUM(H79:H81)","v":0},0,null,{"$f":"DespesesProjecte[[#This Row],[Importe imputable a la subvención municipal]]-G78","v":0},{"$f":"DespesesProjecte[[#This Row],[Importe de la aportación / Cofinanciación de la organización]]-H78","v":0},{"$f":"DespesesProjecte[[#This Row],[Importe total del proyecto]]-I78","v":0}]
[null,null,null,{"$f":"SUM(DespesesProjecte[[#This Row],[Importe imputable a la subvención municipal]],DespesesProjecte[[#This Row],[Importe de la aportación / Cofinanciación de la organización]])","v":0},null,null,null,null,0,null,{"$f":"DespesesProjecte[[#This Row],[Importe imputable a la subvención municipal]]-G79","v":0},{"$f":"DespesesProjecte[[#This Row],[Importe de la aportación / Cofinanciación de la organización]]-H79","v":0},{"$f":"DespesesProjecte[[#This Row],[Importe total del proyecto]]-I79","v":0}]
[null,null,null,{"$f":"SUM(DespesesProjecte[[#This Row],[Importe imputable a la subvención municipal]],DespesesProjecte[[#This Row],[Importe de la aportación / Cofinanciación de la organización]])","v":0},null,null,null,null,0,null,{"$f":"DespesesProjecte[[#This Row],[Importe imputable a la subvención municipal]]-G80","v":0},{"$f":"DespesesProjecte[[#This Row],[Importe de la aportación / Cofinanciación de la organización]]-H80","v":0},{"$f":"DespesesProjecte[[#This Row],[Importe total del proyecto]]-I80","v":0}]
[null,null,null,{"$f":"SUM(DespesesProjecte[[#This Row],[Importe imputable a la subvención municipal]],DespesesProjecte[[#This Row],[Importe de la aportación / Cofinanciación de la organización]])","v":0},null,null,null,null,0,null,{"$f":"DespesesProjecte[[#This Row],[Importe imputable a la subvención municipal]]-G81","v":0},{"$f":"DespesesProjecte[[#This Row],[Importe de la aportación / Cofinanciación de la organización]]-H81","v":0},{"$f":"DespesesProjecte[[#This Row],[Importe total del proyecto]]-I81","v":0}]
["I3. Amortización",{"$f":"SUM(B83:B85)","v":0},{"$f":"SUM(C83:C85)","v":0},{"$f":"SUM(DespesesProjecte[[#This Row],[Importe imputable a la subvención municipal]],DespesesProjecte[[#This Row],[Importe de la aportación / Cofinanciación de la organización]])","v":0},null,"I3. Amortización",{"$f":"SUM(G83:G85)","v":0},{"$f":"SUM(H83:H85)","v":0},0,null,{"$f":"DespesesProjecte[[#This Row],[Importe imputable a la subvención municipal]]-G82","v":0},{"$f":"DespesesProjecte[[#This Row],[Importe de la aportación / Cofinanciación de la organización]]-H82","v":0},{"$f":"DespesesProjecte[[#This Row],[Importe total del proyecto]]-I82","v":0}]
[null,null,null,{"$f":"SUM(DespesesProjecte[[#This Row],[Importe imputable a la subvención municipal]],DespesesProjecte[[#This Row],[Importe de la aportación / Cofinanciación de la organización]])","v":0},null,null,null,null,0,null,{"$f":"DespesesProjecte[[#This Row],[Importe imputable a la subvención municipal]]-G83","v":0},{"$f":"DespesesProjecte[[#This Row],[Importe de la aportación / Cofinanciación de la organización]]-H83","v":0},{"$f":"DespesesProjecte[[#This Row],[Importe total del proyecto]]-I83","v":0}]
[null,null,null,{"$f":"SUM(DespesesProjecte[[#This Row],[Importe imputable a la subvención municipal]],DespesesProjecte[[#This Row],[Importe de la aportación / Cofinanciación de la organización]])","v":0},null,null,null,null,0,null,{"$f":"DespesesProjecte[[#This Row],[Importe imputable a la subvención municipal]]-G84","v":0},{"$f":"DespesesProjecte[[#This Row],[Importe de la aportación / Cofinanciación de la organización]]-H84","v":0},{"$f":"DespesesProjecte[[#This Row],[Importe total del proyecto]]-I84","v":0}]
[null,null,null,{"$f":"SUM(DespesesProjecte[[#This Row],[Importe imputable a la subvención municipal]],DespesesProjecte[[#This Row],[Importe de la aportación / Cofinanciación de la organización]])","v":0},null,null,null,null,0,null,{"$f":"DespesesProjecte[[#This Row],[Importe imputable a la subvención municipal]]-G85","v":0},{"$f":"DespesesProjecte[[#This Row],[Importe de la aportación / Cofinanciación de la organización]]-H85","v":0},{"$f":"DespesesProjecte[[#This Row],[Importe total del proyecto]]-I85","v":0}]
["I4. Alquiler de bienes inmuebles",{"$f":"SUM(B87:B89)","v":0},{"$f":"SUM(C87:C89)","v":0},{"$f":"SUM(DespesesProjecte[[#This Row],[Importe imputable a la subvención municipal]],DespesesProjecte[[#This Row],[Importe de la aportación / Cofinanciación de la organización]])","v":0},null,"I4. Alquiler de bienes inmuebles",{"$f":"SUM(G87:G89)","v":0},{"$f":"SUM(H87:H89)","v":0},0,null,{"$f":"DespesesProjecte[[#This Row],[Importe imputable a la subvención municipal]]-G86","v":0},{"$f":"DespesesProjecte[[#This Row],[Importe de la aportación / Cofinanciación de la organización]]-H86","v":0},{"$f":"DespesesProjecte[[#This Row],[Importe total del proyecto]]-I86","v":0}]
[null,null,null,{"$f":"SUM(DespesesProjecte[[#This Row],[Importe imputable a la subvención municipal]],DespesesProjecte[[#This Row],[Importe de la aportación / Cofinanciación de la organización]])","v":0},null,null,null,null,0,null,{"$f":"DespesesProjecte[[#This Row],[Importe imputable a la subvención municipal]]-G87","v":0},{"$f":"DespesesProjecte[[#This Row],[Importe de la aportación / Cofinanciación de la organización]]-H87","v":0},{"$f":"DespesesProjecte[[#This Row],[Importe total del proyecto]]-I87","v":0}]
[null,null,null,{"$f":"SUM(DespesesProjecte[[#This Row],[Importe imputable a la subvención municipal]],DespesesProjecte[[#This Row],[Importe de la aportación / Cofinanciación de la organización]])","v":0},null,null,null,null,0,null,{"$f":"DespesesProjecte[[#This Row],[Importe imputable a la subvención municipal]]-G88","v":0},{"$f":"DespesesProjecte[[#This Row],[Importe de la aportación / Cofinanciación de la organización]]-H88","v":0},{"$f":"DespesesProjecte[[#This Row],[Importe total del proyecto]]-I88","v":0}]
[null,null,null,{"$f":"SUM(DespesesProjecte[[#This Row],[Importe imputable a la subvención municipal]],DespesesProjecte[[#This Row],[Importe de la aportación / Cofinanciación de la organización]])","v":0},null,null,null,null,0,null,{"$f":"DespesesProjecte[[#This Row],[Importe imputable a la subvención municipal]]-G89","v":0},{"$f":"DespesesProjecte[[#This Row],[Importe de la aportación / Cofinanciación de la organización]]-H89","v":0},{"$f":"DespesesProjecte[[#This Row],[Importe total del proyecto]]-I89","v":0}]
["I5. Adquisición de materiales y bienes consumibles parcialmente imputables al proyecto",{"$f":"SUM(B91:B93)","v":0},{"$f":"SUM(C91:C93)","v":0},{"$f":"SUM(DespesesProjecte[[#This Row],[Importe imputable a la subvención municipal]],DespesesProjecte[[#This Row],[Importe de la aportación / Cofinanciación de la organización]])","v":0},null,"I5. Adquisición de materiales y bienes consumibles parcialmente imputables al proyecto",{"$f":"SUM(G91:G93)","v":0},{"$f":"SUM(H91:H93)","v":0},0,null,{"$f":"DespesesProjecte[[#This Row],[Importe imputable a la subvención municipal]]-G90","v":0},{"$f":"DespesesProjecte[[#This Row],[Importe de la aportación / Cofinanciación de la organización]]-H90","v":0},{"$f":"DespesesProjecte[[#This Row],[Importe total del proyecto]]-I90","v":0}]
[null,null,null,{"$f":"SUM(DespesesProjecte[[#This Row],[Importe imputable a la subvención municipal]],DespesesProjecte[[#This Row],[Importe de la aportación / Cofinanciación de la organización]])","v":0},null,null,null,null,0,null,{"$f":"DespesesProjecte[[#This Row],[Importe imputable a la subvención municipal]]-G91","v":0},{"$f":"DespesesProjecte[[#This Row],[Importe de la aportación / Cofinanciación de la organización]]-H91","v":0},{"$f":"DespesesProjecte[[#This Row],[Importe total del proyecto]]-I91","v":0}]
[null,null,null,{"$f":"SUM(DespesesProjecte[[#This Row],[Importe imputable a la subvención municipal]],DespesesProjecte[[#This Row],[Importe de la aportación / Cofinanciación de la organización]])","v":0},null,null,null,null,0,null,{"$f":"DespesesProjecte[[#This Row],[Importe imputable a la subvención municipal]]-G92","v":0},{"$f":"DespesesProjecte[[#This Row],[Importe de la aportación / Cofinanciación de la organización]]-H92","v":0},{"$f":"DespesesProjecte[[#This Row],[Importe total del proyecto]]-I92","v":0}]
[null,null,null,{"$f":"SUM(DespesesProjecte[[#This Row],[Importe imputable a la subvención municipal]],DespesesProjecte[[#This Row],[Importe de la aportación / Cofinanciación de la organización]])","v":0},null,null,null,null,0,null,{"$f":"DespesesProjecte[[#This Row],[Importe imputable a la subvención municipal]]-G93","v":0},{"$f":"DespesesProjecte[[#This Row],[Importe de la aportación / Cofinanciación de la organización]]-H93","v":0},{"$f":"DespesesProjecte[[#This Row],[Importe total del proyecto]]-I93","v":0}]
["I6. Mantenimiento de edificios y/o instalaciones",{"$f":"SUM(B95:B97)","v":0},{"$f":"SUM(C95:C97)","v":0},{"$f":"SUM(DespesesProjecte[[#This Row],[Importe imputable a la subvención municipal]],DespesesProjecte[[#This Row],[Importe de la aportación / Cofinanciación de la organización]])","v":0},null,"I6. Mantenimiento de edificios y/o instalaciones",{"$f":"SUM(G95:G97)","v":0},{"$f":"SUM(H95:H97)","v":0},0,null,{"$f":"DespesesProjecte[[#This Row],[Importe imputable a la subvención municipal]]-G94","v":0},{"$f":"DespesesProjecte[[#This Row],[Importe de la aportación / Cofinanciación de la organización]]-H94","v":0},{"$f":"DespesesProjecte[[#This Row],[Importe total del proyecto]]-I94","v":0}]
[null,null,null,{"$f":"SUM(DespesesProjecte[[#This Row],[Importe imputable a la subvención municipal]],DespesesProjecte[[#This Row],[Importe de la aportación / Cofinanciación de la organización]])","v":0},null,null,null,null,0,null,{"$f":"DespesesProjecte[[#This Row],[Importe imputable a la subvención municipal]]-G95","v":0},{"$f":"DespesesProjecte[[#This Row],[Importe de la aportación / Cofinanciación de la organización]]-H95","v":0},{"$f":"DespesesProjecte[[#This Row],[Importe total del proyecto]]-I95","v":0}]
[null,null,null,{"$f":"SUM(DespesesProjecte[[#This Row],[Importe imputable a la subvención municipal]],DespesesProjecte[[#This Row],[Importe de la aportación / Cofinanciación de la organización]])","v":0},null,null,null,null,0,null,{"$f":"DespesesProjecte[[#This Row],[Importe imputable a la subvención municipal]]-G96","v":0},{"$f":"DespesesProjecte[[#This Row],[Importe de la aportación / Cofinanciación de la organización]]-H96","v":0},{"$f":"DespesesProjecte[[#This Row],[Importe total del proyecto]]-I96","v":0}]
[null,null,null,{"$f":"SUM(DespesesProjecte[[#This Row],[Importe imputable a la subvención municipal]],DespesesProjecte[[#This Row],[Importe de la aportación / Cofinanciación de la organización]])","v":0},null,null,null,null,0,null,{"$f":"DespesesProjecte[[#This Row],[Importe imputable a la subvención municipal]]-G97","v":0},{"$f":"DespesesProjecte[[#This Row],[Importe de la aportación / Cofinanciación de la organización]]-H97","v":0},{"$f":"DespesesProjecte[[#This Row],[Importe total del proyecto]]-I97","v":0}]
["I7. Comunicaciones (teléfono, correos, conexión a internet)",{"$f":"SUM(B99:B101)","v":0},{"$f":"SUM(C99:C101)","v":0},{"$f":"SUM(DespesesProjecte[[#This Row],[Importe imputable a la subvención municipal]],DespesesProjecte[[#This Row],[Importe de la aportación / Cofinanciación de la organización]])","v":0},null,"I7. Comunicaciones (teléfono, correos, conexión a internet)",{"$f":"SUM(G99:G101)","v":0},{"$f":"SUM(H99:H101)","v":0},0,null,{"$f":"DespesesProjecte[[#This Row],[Importe imputable a la subvención municipal]]-G98","v":0},{"$f":"DespesesProjecte[[#This Row],[Importe de la aportación / Cofinanciación de la organización]]-H98","v":0},{"$f":"DespesesProjecte[[#This Row],[Importe total del proyecto]]-I98","v":0}]
[null,null,null,{"$f":"SUM(DespesesProjecte[[#This Row],[Importe imputable a la subvención municipal]],DespesesProjecte[[#This Row],[Importe de la aportación / Cofinanciación de la organización]])","v":0},null,null,null,null,0,null,{"$f":"DespesesProjecte[[#This Row],[Importe imputable a la subvención municipal]]-G99","v":0},{"$f":"DespesesProjecte[[#This Row],[Importe de la aportación / Cofinanciación de la organización]]-H99","v":0},{"$f":"DespesesProjecte[[#This Row],[Importe total del proyecto]]-I99","v":0}]
[null,null,null,{"$f":"SUM(DespesesProjecte[[#This Row],[Importe imputable a la subvención municipal]],DespesesProjecte[[#This Row],[Importe de la aportación / Cofinanciación de la organización]])","v":0},null,null,null,null,0,null,{"$f":"DespesesProjecte[[#This Row],[Importe imputable a la subvención municipal]]-G100","v":0},{"$f":"DespesesProjecte[[#This Row],[Importe de la aportación / Cofinanciación de la organización]]-H100","v":0},{"$f":"DespesesProjecte[[#This Row],[Importe total del proyecto]]-I100","v":0}]
[null,null,null,{"$f":"SUM(DespesesProjecte[[#This Row],[Importe imputable a la subvención municipal]],DespesesProjecte[[#This Row],[Importe de la aportación / Cofinanciación de la organización]])","v":0},null,null,null,null,0,null,{"$f":"DespesesProjecte[[#This Row],[Importe imputable a la subvención municipal]]-G101","v":0},{"$f":"DespesesProjecte[[#This Row],[Importe de la aportación / Cofinanciación de la organización]]-H101","v":0},{"$f":"DespesesProjecte[[#This Row],[Importe total del proyecto]]-I101","v":0}]
["I8. Gastos financieros",{"$f":"SUM(B103:B105)","v":0},{"$f":"SUM(C103:C105)","v":0},{"$f":"SUM(DespesesProjecte[[#This Row],[Importe imputable a la subvención municipal]],DespesesProjecte[[#This Row],[Importe de la aportación / Cofinanciación de la organización]])","v":0},null,"I8. Gastos financieros",{"$f":"SUM(G103:G105)","v":0},{"$f":"SUM(H103:H105)","v":0},0,null,{"$f":"DespesesProjecte[[#This Row],[Importe imputable a la subvención municipal]]-G102","v":0},{"$f":"DespesesProjecte[[#This Row],[Importe de la aportación / Cofinanciación de la organización]]-H102","v":0},{"$f":"DespesesProjecte[[#This Row],[Importe total del proyecto]]-I102","v":0}]
[null,null,null,{"$f":"SUM(DespesesProjecte[[#This Row],[Importe imputable a la subvención municipal]],DespesesProjecte[[#This Row],[Importe de la aportación / Cofinanciación de la organización]])","v":0},null,null,null,null,0,null,{"$f":"DespesesProjecte[[#This Row],[Importe imputable a la subvención municipal]]-G103","v":0},{"$f":"DespesesProjecte[[#This Row],[Importe de la aportación / Cofinanciación de la organización]]-H103","v":0},{"$f":"DespesesProjecte[[#This Row],[Importe total del proyecto]]-I103","v":0}]
[null,null,null,{"$f":"SUM(DespesesProjecte[[#This Row],[Importe imputable a la subvención municipal]],DespesesProjecte[[#This Row],[Importe de la aportación / Cofinanciación de la organización]])","v":0},null,null,null,null,0,null,{"$f":"DespesesProjecte[[#This Row],[Importe imputable a la subvención municipal]]-G104","v":0},{"$f":"DespesesProjecte[[#This Row],[Importe de la aportación / Cofinanciación de la organización]]-H104","v":0},{"$f":"DespesesProjecte[[#This Row],[Importe total del proyecto]]-I104","v":0}]
[null,null,null,{"$f":"SUM(DespesesProjecte[[#This Row],[Importe imputable a la subvención municipal]],DespesesProjecte[[#This Row],[Importe de la aportación / Cofinanciación de la organización]])","v":0},null,null,null,null,0,null,{"$f":"DespesesProjecte[[#This Row],[Importe imputable a la subvención municipal]]-G105","v":0},{"$f":"DespesesProjecte[[#This Row],[Importe de la aportación / Cofinanciación de la organización]]-H105","v":0},{"$f":"DespesesProjecte[[#This Row],[Importe total del proyecto]]-I105","v":0}]
["I9. Suministros",{"$f":"SUM(B107:B109)","v":0},{"$f":"SUM(C107:C109)","v":0},{"$f":"SUM(DespesesProjecte[[#This Row],[Importe imputable a la subvención municipal]],DespesesProjecte[[#This Row],[Importe de la aportación / Cofinanciación de la organización]])","v":0},null,"I9. Suministros",{"$f":"SUM(G107:G109)","v":0},{"$f":"SUM(H107:H109)","v":0},0,null,{"$f":"DespesesProjecte[[#This Row],[Importe imputable a la subvención municipal]]-G106","v":0},{"$f":"DespesesProjecte[[#This Row],[Importe de la aportación / Cofinanciación de la organización]]-H106","v":0},{"$f":"DespesesProjecte[[#This Row],[Importe total del proyecto]]-I106","v":0}]
[null,null,null,{"$f":"SUM(DespesesProjecte[[#This Row],[Importe imputable a la subvención municipal]],DespesesProjecte[[#This Row],[Importe de la aportación / Cofinanciación de la organización]])","v":0},null,null,null,null,0,null,{"$f":"DespesesProjecte[[#This Row],[Importe imputable a la subvención municipal]]-G107","v":0},{"$f":"DespesesProjecte[[#This Row],[Importe de la aportación / Cofinanciación de la organización]]-H107","v":0},{"$f":"DespesesProjecte[[#This Row],[Importe total del proyecto]]-I107","v":0}]
[null,null,null,{"$f":"SUM(DespesesProjecte[[#This Row],[Importe imputable a la subvención municipal]],DespesesProjecte[[#This Row],[Importe de la aportación / Cofinanciación de la organización]])","v":0},null,null,null,null,0,null,{"$f":"DespesesProjecte[[#This Row],[Importe imputable a la subvención municipal]]-G108","v":0},{"$f":"DespesesProjecte[[#This Row],[Importe de la aportación / Cofinanciación de la organización]]-H108","v":0},{"$f":"DespesesProjecte[[#This Row],[Importe total del proyecto]]-I108","v":0}]
[null,null,null,{"$f":"SUM(DespesesProjecte[[#This Row],[Importe imputable a la subvención municipal]],DespesesProjecte[[#This Row],[Importe de la aportación / Cofinanciación de la organización]])","v":0},null,null,null,null,0,null,{"$f":"DespesesProjecte[[#This Row],[Importe imputable a la subvención municipal]]-G109","v":0},{"$f":"DespesesProjecte[[#This Row],[Importe de la aportación / Cofinanciación de la organización]]-H109","v":0},{"$f":"DespesesProjecte[[#This Row],[Importe total del proyecto]]-I109","v":0}]
["I10. Trabajo realizado por otras empresas, parcialmente imputables al proyecto (limpieza, seguridad...)",{"$f":"SUM(B111:B113)","v":0},{"$f":"SUM(C111:C113)","v":0},{"$f":"SUM(DespesesProjecte[[#This Row],[Importe imputable a la subvención municipal]],DespesesProjecte[[#This Row],[Importe de la aportación / Cofinanciación de la organización]])","v":0},null,"I10. Trabajo realizado por otras empresas, parcialmente imputables al proyecto (limpieza, seguridad...)",{"$f":"SUM(G111:G113)","v":0},{"$f":"SUM(H111:H113)","v":0},0,null,{"$f":"DespesesProjecte[[#This Row],[Importe imputable a la subvención municipal]]-G110","v":0},{"$f":"DespesesProjecte[[#This Row],[Importe de la aportación / Cofinanciación de la organización]]-H110","v":0},{"$f":"DespesesProjecte[[#This Row],[Importe total del proyecto]]-I110","v":0}]
[null,null,null,{"$f":"SUM(DespesesProjecte[[#This Row],[Importe imputable a la subvención municipal]],DespesesProjecte[[#This Row],[Importe de la aportación / Cofinanciación de la organización]])","v":0},null,null,null,null,0,null,{"$f":"DespesesProjecte[[#This Row],[Importe imputable a la subvención municipal]]-G111","v":0},{"$f":"DespesesProjecte[[#This Row],[Importe de la aportación / Cofinanciación de la organización]]-H111","v":0},{"$f":"DespesesProjecte[[#This Row],[Importe total del proyecto]]-I111","v":0}]
[null,null,null,{"$f":"SUM(DespesesProjecte[[#This Row],[Importe imputable a la subvención municipal]],DespesesProjecte[[#This Row],[Importe de la aportación / Cofinanciación de la organización]])","v":0},null,null,null,null,0,null,{"$f":"DespesesProjecte[[#This Row],[Importe imputable a la subvención municipal]]-G112","v":0},{"$f":"DespesesProjecte[[#This Row],[Importe de la aportación / Cofinanciación de la organización]]-H112","v":0},{"$f":"DespesesProjecte[[#This Row],[Importe total del proyecto]]-I112","v":0}]
[null,null,null,{"$f":"SUM(DespesesProjecte[[#This Row],[Importe imputable a la subvención municipal]],DespesesProjecte[[#This Row],[Importe de la aportación / Cofinanciación de la organización]])","v":0},null,null,null,null,0,null,{"$f":"DespesesProjecte[[#This Row],[Importe imputable a la subvención municipal]]-G113","v":0},{"$f":"DespesesProjecte[[#This Row],[Importe de la aportación / Cofinanciación de la organización]]-H113","v":0},{"$f":"DespesesProjecte[[#This Row],[Importe total del proyecto]]-I113","v":0}]
["TOTAL GASTOS INDIRECTOS (se podrán asignar al proyecto subvencionable utilizando un porcentaje de asignación) - Máximo 10% del importe imputable a la subvención municipal",{"$f":"SUM(B74,B78,B82,B86,B90,B94,B98,B102,B106,B110)","v":0},{"$f":"SUM(C74,C78,C82,C86,C90,C94,C98,C102,C106,C110)","v":0},{"$f":"SUM(D74,D78,D82,D86,D90,D94,D98,D102,D106,D110)","v":0},null,"TOTAL GASTOS INDIRECTOS (se podrán asignar al proyecto subvencionable utilizando un porcentaje de asignación) - Máximo 10% del importe imputable a la subvención municipal",{"$f":"SUM(G74,G78,G82,G86,G90,G94,G98,G102,G106,G110)","v":0},{"$f":"SUM(H74,H78,H82,H86,H90,H94,H98,H102,H106,H110)","v":0},{"$f":"SUM(I74,I78,I82,I86,I90,I94,I98,I102,I106,I110)","v":0},{"$f":"+IF(G114>G13*0.1,\"ALERTA: Màxim 10% de l'import imputable a la subvenció municipal\", \" \")","v":" "},{"$f":"DespesesProjecte[[#This Row],[Importe imputable a la subvención municipal]]-G114","v":0},{"$f":"DespesesProjecte[[#This Row],[Importe de la aportación / Cofinanciación de la organización]]-H114","v":0},{"$f":"DespesesProjecte[[#This Row],[Importe total del proyecto]]-I114","v":0}]
["TOTAL DE GASTOS PREVISTOS",{"$f":"SUM(B114,B73)","v":0},{"$f":"SUM(C114,C73)","v":0},{"$f":"SUM(D114,D73)","v":0},null,"TOTAL DE GASTOS PREVISTOS",{"$f":"SUM(G114,G73)","v":0},{"$f":"SUM(H114,H73)","v":0},{"$f":"SUM(I114,I73)","v":0},null,{"$f":"DespesesProjecte[[#This Row],[Importe imputable a la subvención municipal]]-G115","v":0},{"$f":"DespesesProjecte[[#This Row],[Importe de la aportación / Cofinanciación de la organización]]-H115","v":0},{"$f":"DespesesProjecte[[#This Row],[Importe de la aportación / Cofinanciación de la organización]]-I115","v":0}]
[]
[]
["Modalidad Bb. Creación y/o fortalecimiento de ecosistemas cooperativos y clústers de ESS mediante acciones de intercooperación, vinculadas a la Estrategia #ESSBCN2030 y a los objectivos estratégicos del PIESS 2024-2027"]
["1. La cuantía de la subvención otorgada no superará el 80% del gasto total del proyecto a subvencionar. "]
["2. El importe máximo de subvención para esta modalidad Bb del ámbito temático de Intercooperación (B) es 30.000€."]
["3. En el caso de que la solicitud presentada sobrepase el importe máximo, se considerará como importe solicitado el máximo del establecido en la convocatoria."]
["4. En esta modalidad se aceptará la imputación de gastos de personal propio y directamente vinculado al proyecto de las organizaciones participantes del acuerdo de intercooperación."]
["5. Se limita con un máximo del 25% el importe de la subvención para gastos de personal propio asignado directamente al proyecto subvencionado (régimen general o socios/as cooperativistas en régimen de autónomos), y un 80% para nóminas y seguridad social de estudiantes en prácticas (sueldo bruto correspondiente al período de la ejecución de la subvención) - excepto si la seguridad social está bonificada."]
["6. En el caso de alquileres de inmuebles los gastos de alquiler se imputarán a los gastos indirectos con el límite establecido para estos gastos indirectos."]
["7. Para las subvenciones otorgadas por importe igual o superior a 20.000 € es necesario un informe de auditoría para la justificación. El importe de este informe se considera gasto subvencionable, con un límite máximo de 1.500€."]
["8. Son imputables en esta modalidad los gastos indirectos, detallados en el apartado 13.3. de las bases reguladoras; con un máximo del 10% del importe de la subvención. \n"]
["9. Cuando se tengan que realizar gastos de más de 12.000 €, sin IVA, en el caso de prestaciones de servicios o entrega de bienes, se deberán incorporar tres presupuestos solicitados y argumentar el motivo de la adjudicación en el caso de no ser la propuesta más ventajosa económicamente."]
["10. No serán elegibles facturas de empresas emitidas entre las organizaciones participantes del acuerdo de intercooperación."]
["11. En ningún caso se considerarán gastos subvencionables:\n> Los impuestos indirectos cuando sean susceptibles de recuperación o compensación.\n> Los gastos de inversión, incluidas las adquisiciones de bienes muebles.\n> Los gastos realizados con fecha anterior al inicio del proyecto y fecha posterior a la finalización del proyecto.\n> Otros gastos que se indiquen en la convocatoria."]
["12. La retribución de las personas contratadas en el marco del proyecto subvencionado no puede ser inferior al Salario Mínimo Interprofesional (SMI), ni a lo estipulado en el correspondiente convenio o marco normativo de referencia (punto 7 de las bases 2024: requisitos de los proyectos). "]
["13. Los materiales producidos de difusión, estudios, informes o materiales didácticos utilizados, etc. en el caso de tratarse de gasto elegible de la subvención, deberán tener licencia Creative Commons -Compartir Igual- (share a like) y no podrá tener la condición –Sin Obras Derivadas- (no derivate Works)."]
["14. Los proyectos subvencionados deben fomentar actividades de interés público o social, las cuales deben ser gratuitas para las personas participantes o en ningún caso el precio debe suponer un obstáculo para su participación, buscando otras formas de acceso para personas con dificultades económicas. En el caso de que haya algún tipo de lucro, tendrá que revertir en las propias actividades subvencionadas."]
["15. El Ayuntamiento de Barcelona y sus entidades municipales en ningún caso subvencionarán el mismo proyecto, ejecutado durante el mismo período, por ningún otro procedimiento de concesión que no sea el regulado por las bases reguladoras."]
["16. El/la beneficiari/aria no podrá alterar en ningún caso el destino de las subvenciones concedidas."]
["17. La organización designada como representante de la agrupación será plenamente responsable del proyecto ante el Ayuntamiento respecto el cumplimiento de las obligaciones establecidas en las bases reguladoras, sin prejuicio de la responsabilidad de las otras organizaciones socias de la agrupación, siéndole de aplicación los requisitos previstos al punto 6.1 de las bases reguladoras. "]
["18. En ningún caso podrán formar parte de la agrupación las organizaciones que hayan recibido otras subvenciones para la ejecución del mismo proyecto de otras administraciones públicas."]
["19. El programa de prácticas del alumno/a debe ser de una duración mínima de 400 horas o superior."]
["20. Sólo puede presentarse una solicitud para un lugar de prácticas por organización solicitante."]
["21. Habrá que remunerar al alumno/a en prácticas universitarias (curriculares o extracurriculares) con un coste bruto hora mínimo de 6€/hora o superior."]
["22. Habrá que remunerar al alumno/a según la modalidad de FP dual escogida como mínimo de acuerdo con la normativa específica que establece el Departamento de Educación de la Generalidad de Cataluña o superior."]

{"sheet":"Resumen Presupuesto","index":2,"n_rows":32,"n_cols":11,"rows_kept":32,"cut":false,"hidden":false,"merged":[[1,2,1,7],[5,0,5,1],[3,0,3,8],[6,2,7,2],[6,0,7,1],[6,8,7,8],[6,6,7,7],[6,4,7,4],[6,3,7,3],[21,1,22,1],[6,9,7,9],[19,6,19,7],[25,7,25,9],[21,2,22,2],[21,3,22,3],[21,4,22,4]]}
[]
[null,null,"Resumen presupuesto Modalidad Bb"]
[]
["Subvenciones del Ayuntamiento de Barcelona para el fortalecimiento de la Economía Social y Solidaria y para la intercooperación en la Estrategia #ESSBCN2030 - FORTALECEMOS LA ESS 2024",null,null,null,null,null,null,null,null,"MODALIDAD Bb"]
[]
["GASTOS PREVISTOS",null,null,null,null,null,"INGRESOS PREVISTOS"]
["Gastos directos \n(aquellos que se identifican directamente con el proyecto)",null,"Previsión inicial coste total","Previsión reformulada coste total","Importe imputado a la subvención otorgada",null,"Ingresos previstos",null,"Previsión inicial ingreso total","Previsión reformulada ingreso total"]
[]
["Bb","D1. Nóminas y seguridad social IRPF (régimen general o socios/as cooperativistas en régimen de autónomos) del personal propio vinculado al proyecto subvencionable (máximo 25% importe subvención)",{"$f":"+'Reformulación Presupuesto Bb'!D23","v":0},{"$f":"+'Reformulación Presupuesto Bb'!I23","v":0},{"$f":"+'Reformulación Presupuesto Bb'!G23","v":0},{"$f":"+IF(D9<0,\"No s'admeten valors negatius\",\"\")","v":""},"A.","Subvención municipal (importe solicitado en la instancia/otorgado)",{"$f":"'Reformulación Presupuesto Bb'!B13","v":0},{"$f":"'Reformulación Presupuesto Bb'!G13","v":0}]
[null,"D2. Nóminas y seguridad social de estudiantes en prácticas (con un límite del 80% de su sueldo bruto correspondiente al período de la ejecución de la subvención) - excepto si la seguridad social está bonificada",{"$f":"+'Reformulación Presupuesto Bb'!D27","v":0},{"$f":"+'Reformulación Presupuesto Bb'!I27","v":0},{"$f":"+'Reformulación Presupuesto Bb'!G27","v":0},null,"B.","Subvenciones de otras administraciones",null,null,{"$f":"+IF(J10<0,\"No s'admeten valors negatius\",\"\")","v":""}]
[null,"D3. Trabajos realizados por profesionales y empresas externas directamente vinculadas al proyecto",{"$f":"+'Reformulación Presupuesto Bb'!D32","v":0},{"$f":"+'Reformulación Presupuesto Bb'!I32","v":0},{"$f":"+'Reformulación Presupuesto Bb'!G32","v":0},{"$f":"+IF(D10<0,\"No s'admeten valors negatius\",\"\")","v":""},"C.","Subvenciones de entes privados",null,null,""]
[null,"D4. Adquisición de materiales y bienes consumibles íntegramente imputables al proyecto ",{"$f":"+'Reformulación Presupuesto Bb'!D36","v":0},{"$f":"+'Reformulación Presupuesto Bb'!I36","v":0},{"$f":"+'Reformulación Presupuesto Bb'!G36","v":0},null,"D.","Recursos propios de la organización aplicados al proyecto"]
[null,"D5. Transporte – mensajería imputables al proyecto",{"$f":"+'Reformulación Presupuesto Bb'!D40","v":0},{"$f":"+'Reformulación Presupuesto Bb'!I40","v":0},{"$f":"+'Reformulación Presupuesto Bb'!G40","v":0},null,"E.","Taquillaje"]
[null,"D6. Publicidad y propaganda de las actividades directamente vinculadas al proyecto",{"$f":"+'Reformulación Presupuesto Bb'!D44","v":0},{"$f":"+'Reformulación Presupuesto Bb'!I44","v":0},{"$f":"+'Reformulación Presupuesto Bb'!G44","v":0},null,"F.","Cuotas de inscripción"]
[null,"D7. Alojamiento y dietas, del personal contratado y voluntario, vinculados al proyecto",{"$f":"+'Reformulación Presupuesto Bb'!D48","v":0},{"$f":"+'Reformulación Presupuesto Bb'!I48","v":0},{"$f":"+'Reformulación Presupuesto Bb'!G48","v":0},null,"G.","Venta de Productos"]
[null,"D8. Ayudas al transporte para los/las participantes de los proyectos en caso de que sea necesario de manera justificada",{"$f":"+'Reformulación Presupuesto Bb'!D52","v":0},{"$f":"+'Reformulación Presupuesto Bb'!I52","v":0},{"$f":"+'Reformulación Presupuesto Bb'!G52","v":0},null,"H","Publicidad y/o Esponsorización"]
[null,"D9. Viajes y desplazamientos imputables a las actividades del proyecto",{"$f":"+'Reformulación Presupuesto Bb'!D56","v":0},{"$f":"+'Reformulación Presupuesto Bb'!I56","v":0},{"$f":"+'Reformulación Presupuesto Bb'!G56","v":0},null,"I.","Otros ingresos"]
[null,"D10. Tributos, cuando sean abonados directamente por la persona jurídica o física beneficiaria",{"$f":"+'Reformulación Presupuesto Bb'!D60","v":0},{"$f":"+'Reformulación Presupuesto Bb'!I60","v":0},{"$f":"+'Reformulación Presupuesto Bb'!G60","v":0},null,null,"Total Ingresos",{"$f":"SUM(I9:I17)","v":0},{"$f":"SUM(J9:J17)","v":0}]
[null,"D11. Gastos del informe de auditoría (máximo 1.500€ subvención)",{"$f":"+'Reformulación Presupuesto Bb'!D64","v":0},{"$f":"+'Reformulación Presupuesto Bb'!I64","v":0},{"$f":"+'Reformulación Presupuesto Bb'!G64","v":0}]
[null,"D12. Otros gastos que de manera justificada y por la tipología del proyecto puedan imputarse directamente al proyecto",{"$f":"+'Reformulación Presupuesto Bb'!D68","v":0},{"$f":"+'Reformulación Presupuesto Bb'!I68","v":0},{"$f":"+'Reformulación Presupuesto Bb'!G68","v":0},null,"Ingresos menos gastos ",null,{"$f":"+I18-C28","v":0},{"$f":"+J18-D28","v":0}]
[null,"Total Gastos Directos   ",{"$f":"SUM(C9:C20)","v":0},{"$f":"SUM(D9:D20)","v":0},{"$f":"SUM(E9:E20)","v":0}]
[null,"Gastos indirectos (se podrán asignar al proyecto utilizando un porcentaje de asignación) ","Previsión inicial coste total","Previsión reformulada coste total","Importe imputado a la subvención otorgada"]
[null,null,null,null,null,null,null,null,"% subvencionado inicialmente",{"$f":"I9/C28","v":{"$error":"#DIV/0!"}}]
[]
[null,null,null,null,null,null,null,null,"% subvencionado después de reformular",{"$f":"+J9/D28","v":{"$error":"#DIV/0!"}}]
[null,null,null,null,null,null,null,"*Este porcentaje debe ser igual o menor al porcentaje subvencionado inicialmente"]
[null,"Total Gastos Indirectos (Máx. 10% subv)",{"$f":"SUM(C24:C26)","v":0},{"$f":"SUM(D24:D26)","v":0},{"$f":"SUM(E24:E26)","v":0},{"$f":"+IF(D26<0,\"No s'admeten valors negatius\",\"\")","v":""}]
[null,"Total Gastos ",{"$f":"+C21+C27","v":0},{"$f":"+D21+D27","v":0},{"$f":"+E21+E27","v":0}]
[]
[]
[]
[null,null,null,null,null,null,null,null,null,null,"*"]